fUST/lending_fUST_20250214
["ID","MTS","AMOUNT","RATE_DAILY","PERIOD"]
[352976776,1739471437704,-5001.88,0.00013698,2]
[352976777,1739471437714,-5001.88,0.00013698,2]
[352976778,1739471437723,-5001.88,0.00013698,2]
[352976779,1739471437733,-451.40672039,0.00013698,2]
[352976780,1739471437743,-1008.28,0.00013698,2]
[352976781,1739471437753,-2039.12,0.00013698,2]
[352976782,1739471437763,-4691.41,0.00013698,2]
[352976783,1739471437772,-500.0,0.00013698,2]
[352976784,1739471437782,-500.0,0.00013698,2]
[352976785,1739471437791,-500.0,0.00013698,2]
[352976786,1739471437801,-500.0,0.00013698,2]
[352976787,1739471437811,-1392.44,0.00013698,2]
[352976788,1739471437820,-500.0,0.00013698,2]
[352976789,1739471437829,-500.0,0.00013698,2]
[352976790,1739471437839,-500.0,0.00013698,2]
[352976791,1739471437849,-500.24420257,0.00013698,2]
[352976792,1739471437858,-501.3,0.00013698,2]
[352976793,1739471437867,-500.0,0.00013698,2]
[352976794,1739471437878,-500.0,0.00013698,2]
[352976796,1739471437887,-500.0,0.00013698,2]
[352976798,1739471437897,-794.63,0.00013698,2]
[352976800,1739471437906,-500.0,0.00013698,2]
[352976803,1739471437915,-500.0,0.00013698,2]
[352976806,1739471437925,-500.0,0.00013698,2]
[352976809,1739471437937,-500.0,0.00013698,2]
[352976811,1739471437946,-934.66,0.00013698,2]
[352976813,1739471437956,-35038.18,0.00013698,2]
[352976814,1739471437966,-500.0,0.00013698,2]
[352976815,1739471437975,-1191.05,0.00013698,2]
[352976816,1739471437985,-500.0,0.00013698,2]
[352976817,1739471437994,-500.0,0.00013698,2]
[352976818,1739471438004,-500.0,0.00013698,2]
[352976819,1739471438013,-500.0,0.00013698,2]
[352976820,1739471438022,-500.0,0.00013698,2]
[352976821,1739471438032,-500.0,0.00013698,2]
[352976822,1739471438042,-500.0,0.00013698,2]
[352976823,1739471438051,-500.0,0.00013698,2]
[352976824,1739471438060,-1694.68,0.00013698,2]
[352976825,1739471438070,-1182.68,0.00013698,2]
[352976826,1739471438079,-500.0,0.00013698,2]
[352976827,1739471438088,-746.55,0.00013698,2]
[352976828,1739471438098,-675.84,0.00013698,2]
[352976829,1739471438107,-500.0,0.00013698,2]
[352976830,1739471438116,-500.0,0.00013698,2]
[352976831,1739471438127,-500.0,0.00013698,2]
[352976832,1739471438138,-500.0,0.00013698,2]
[352976833,1739471438149,-500.0,0.00013698,2]
[352976834,1739471438159,-500.0,0.00013698,2]
[352976835,1739471438168,-1015.43,0.00013698,2]
[352976836,1739471438181,-1822.54,0.00013698,2]
[352976837,1739471438194,-500.0,0.00013698,2]
[352976838,1739471438203,-500.0,0.00013698,2]
[352976839,1739471438212,-500.0,0.00013698,2]
[352976840,1739471438225,-500.0,0.00013698,2]
[352976841,1739471438234,-500.0,0.00013698,2]
[352976842,1739471438243,-500.0,0.00013698,2]
[352976843,1739471438253,-14797.35,0.00013698,2]
[352976844,1739471438263,-500.0,0.00013698,2]
[352976845,1739471438274,-500.0,0.00013698,2]
[352976846,1739471438284,-888.54,0.00013698,2]
[352976847,1739471438294,-500.0,0.00013698,2]
[352976848,1739471438307,-500.0,0.00013698,2]
[352976849,1739471438317,-500.0,0.00013698,2]
[352976850,1739471438327,-552.86,0.00013698,2]
[352976851,1739471438336,-500.0,0.00013698,2]
[352976852,1739471438347,-861.53,0.00013698,2]
[352976853,1739471438357,-500.0,0.00013698,2]
[352976854,1739471438367,-500.0,0.00013698,2]
[352976855,1739471438377,-500.0,0.00013698,2]
[352976856,1739471438387,-500.0,0.00013698,2]
[352976857,1739471438398,-500.0,0.00013698,2]
[352976858,1739471438408,-500.0,0.00013698,2]
[352976859,1739471438418,-500.0,0.00013698,2]
[352976860,1739471438429,-500.34668562,0.00013698,2]
[352976861,1739471438439,-501.20891714,0.00013698,2]
[352976862,1739471438448,-500.0,0.00013698,2]
[352976863,1739471438458,-1350.06,0.00013698,2]
[352976864,1739471438467,-500.0,0.00013698,2]
[352976865,1739471438477,-500.0,0.00013698,2]
[352976866,1739471438487,-500.0,0.00013698,2]
[352976867,1739471438496,-649.7,0.00013698,2]
[352976868,1739471438505,-563.11,0.00013698,2]
[352976869,1739471438515,-500.0,0.00013698,2]
[352976870,1739471438525,-2380.41,0.00013698,2]
[352976871,1739471438535,-500.0,0.00013698,2]
[352976872,1739471438544,-3075.12,0.00013698,2]
[352976873,1739471438554,-557.79,0.00013698,2]
[352976874,1739471438563,-776.69,0.00013698,2]
[352976875,1739471438573,-500.0,0.00013698,2]
[352976876,1739471438582,-500.0,0.00013698,2]
[352976877,1739471438592,-500.0,0.00013698,2]
[352976878,1739471438601,-500.0,0.00013698,2]
[352976879,1739471438611,-500.0,0.00013698,2]
[352976880,1739471438620,-500.80166206,0.00013698,2]
[352976881,1739471438630,-520.36,0.00013698,2]
[352976882,1739471438639,-553.24,0.00013698,2]
[352976883,1739471438649,-1408.59,0.00013698,2]
[352976884,1739471438659,-6346.38,0.00013698,2]
[352976885,1739471438668,-500.0,0.00013698,2]
[352976886,1739471438678,-500.0,0.00013698,2]
[352976887,1739471438694,-500.0,0.00013698,2]
[352976888,1739471438705,-500.0,0.00013698,2]
[352976889,1739471438715,-1121.12,0.00013698,2]
[352976890,1739471438725,-500.0,0.00013698,2]
[352976891,1739471438735,-500.0,0.00013698,2]
[352976892,1739471438744,-500.0,0.00013698,2]
[352976893,1739471438753,-500.0,0.00013698,2]
[352976894,1739471438765,-307.07105397,0.00013698,2]
[352976895,1739471438776,-500.0,0.00013698,2]
[352976896,1739471438786,-500.0,0.00013698,2]
[352976897,1739471438795,-1152.75,0.00013698,2]
[352976898,1739471438805,-500.0,0.00013698,2]
[352976899,1739471438815,-550.58,0.00013698,2]
[352976900,1739471438825,-344.96997896,0.00013698,2]
[352976901,1739471438834,-500.0,0.00013698,2]
[352976902,1739471438844,-500.0,0.00013698,2]
[352976903,1739471438854,-500.0,0.00013698,2]
[352976904,1739471438865,-500.57516036,0.00013698,2]
[352976905,1739471438875,-500.0,0.00013698,2]
[352976906,1739471438885,-500.0,0.00013698,2]
[352976907,1739471438895,-501.45576002,0.00013698,2]
[352976908,1739471438905,-500.0,0.00013698,2]
[352976909,1739471438915,-512.61,0.00013698,2]
[352976910,1739471438925,-3054.22,0.00013698,2]
[352976911,1739471438937,-500.0,0.00013698,2]
[352976912,1739471438947,-500.0,0.00013698,2]
[352976913,1739471438956,-568.48,0.00013698,2]
[352976914,1739471438966,-500.0,0.00013698,2]
[352976915,1739471438975,-500.0,0.00013698,2]
[352976916,1739471438985,-831.59,0.00013698,2]
[352976917,1739471438994,-500.0,0.00013698,2]
[352976918,1739471439003,-500.0,0.00013698,2]
[352976919,1739471439013,-507.76679518,0.00013698,2]
[352976920,1739471439022,-500.0,0.00013698,2]
[352976921,1739471439031,-500.0,0.00013698,2]
[352976922,1739471439042,-500.0,0.00013698,2]
[352976923,1739471439051,-500.0,0.00013698,2]
[352976924,1739471439061,-500.0,0.00013698,2]
[352976925,1739471439070,-500.0,0.00013698,2]
[352976926,1739471439080,-6234.85345764,0.00013745,2]
[352976927,1739471439089,-577.45012883,0.00013763,2]
[352976937,1739471439786,-500.0,0.00013698,2]
[352976939,1739471439796,-500.0,0.00013698,2]
[352976941,1739471439805,-500.0,0.00013698,2]
[352976943,1739471439815,-420.40501454,0.00013763,2]
[352976944,1739471439825,-4578.70215831,0.00013769,2]
[352976945,1739471439834,-500.0,0.00013779,2]
[352976946,1739471439844,-270.81170593,0.00013779,2]
[352976947,1739471439854,-5001.88,0.00013779,2]
[352976948,1739471439864,-5001.88,0.00013779,2]
[352976949,1739471439873,-5001.88,0.00013779,2]
[352976950,1739471439883,-5001.88,0.00013779,2]
[352976951,1739471439892,-5001.88,0.00013779,2]
[352976952,1739471439902,-5002.09568675,0.00013779,2]
[352976954,1739471439911,-153.330212,0.00013779,2]
[352976955,1739471439921,-151.0,0.00013779,2]
[352976956,1739471439931,-151.0,0.00013779,2]
[352976957,1739471439943,-151.0,0.00013779,2]
[352976959,1739471439953,-500.0,0.0001378,2]
[352976961,1739471439962,-500.0,0.0001378,2]
[352976963,1739471439971,-500.0,0.0001378,2]
[352976964,1739471439981,-257.55384059,0.0001378,2]
[352976965,1739471439991,-500.0,0.0001378,2]
[352976967,1739471440001,-500.0,0.0001378,2]
[352976968,1739471440010,-500.0,0.0001378,2]
[352976969,1739471440019,-500.0,0.0001378,2]
[352976970,1739471440029,-500.0,0.0001378,2]
[352976971,1739471440038,-500.0,0.0001378,2]
[352976972,1739471440047,-500.0,0.0001378,2]
[352976973,1739471440057,-500.0,0.0001378,2]
[352976974,1739471440066,-500.0,0.0001378,2]
[352976975,1739471440076,-500.0,0.0001378,2]
[352976976,1739471440085,-500.0,0.0001378,2]
[352976977,1739471440095,-500.0,0.0001378,2]
[352976978,1739471440104,-500.0,0.0001378,2]
[352976979,1739471440114,-500.0,0.0001378,2]
[352976980,1739471440123,-500.0,0.0001378,2]
[352976981,1739471440133,-500.0,0.0001378,2]
[352976982,1739471440143,-500.0,0.0001378,2]
[352976983,1739471440153,-500.0,0.0001378,2]
[352976984,1739471440165,-500.0,0.0001378,2]
[352976985,1739471440175,-500.0,0.0001378,2]
[352976987,1739471440187,-500.0,0.0001378,2]
[352976989,1739471440197,-500.0,0.0001378,2]
[352976991,1739471440207,-500.0,0.0001378,2]
[352976993,1739471440219,-500.0,0.0001378,2]
[352976995,1739471440229,-500.0,0.0001378,2]
[352976996,1739471440239,-500.0,0.0001378,2]
[352976997,1739471440248,-500.0,0.0001378,2]
[352976998,1739471440259,-500.0,0.0001378,2]
[352976999,1739471440268,-625.01,0.0001378,2]
[352977000,1739471440278,-500.0,0.0001378,2]
[352977001,1739471440289,-500.0,0.0001378,2]
[352977002,1739471440298,-500.0,0.0001378,2]
[352977003,1739471440308,-500.0,0.0001378,2]
[352977004,1739471440318,-500.0,0.0001378,2]
[352977005,1739471440327,-500.0,0.0001378,2]
[352977006,1739471440336,-566.37426878,0.0001378,2]
[352977007,1739471440346,-500.0,0.0001378,2]
[352977008,1739471440355,-1025.57,0.0001378,2]
[352977009,1739471440365,-500.0,0.0001378,2]
[352977010,1739471440374,-500.0,0.0001378,2]
[352977011,1739471440384,-500.0,0.0001378,2]
[352977012,1739471440394,-500.0,0.0001378,2]
[352977013,1739471440403,-584.42,0.0001378,2]
[352977014,1739471440413,-500.0,0.0001378,2]
[352977015,1739471440423,-500.0,0.0001378,2]
[352977016,1739471440433,-500.0,0.0001378,2]
[352977017,1739471440442,-625.77,0.0001378,2]
[352977018,1739471440451,-500.0,0.0001378,2]
[352977019,1739471440461,-500.0,0.0001378,2]
[352977020,1739471440470,-500.0,0.0001378,2]
[352977021,1739471440480,-500.0,0.0001378,2]
[352977022,1739471440491,-500.0,0.0001378,2]
[352977023,1739471440501,-500.0,0.0001378,2]
[352977024,1739471440511,-500.0,0.0001378,2]
[352977025,1739471440520,-881.82,0.0001378,2]
[352977026,1739471440530,-500.0,0.0001378,2]
[352977027,1739471440540,-500.0,0.0001378,2]
[352977028,1739471440549,-500.0,0.0001378,2]
[352977029,1739471440559,-500.0,0.0001378,2]
[352977030,1739471440569,-500.0,0.0001378,2]
[352977031,1739471440579,-500.0,0.0001378,2]
[352977032,1739471440588,-516.89851348,0.0001378,2]
[352977033,1739471440597,-500.0,0.0001378,2]
[352977034,1739471440607,-500.0,0.0001378,2]
[352977035,1739471440616,-500.0,0.0001378,2]
[352977036,1739471440626,-626.18,0.0001378,2]
[352977037,1739471440635,-500.0,0.0001378,2]
[352977038,1739471440645,-500.0,0.0001378,2]
[352977039,1739471440655,-720.37,0.0001378,2]
[352977040,1739471440664,-500.0,0.0001378,2]
[352977041,1739471440674,-801.94,0.0001378,2]
[352977042,1739471440685,-500.0,0.0001378,2]
[352977043,1739471440694,-500.0,0.0001378,2]
[352977044,1739471440703,-500.0,0.0001378,2]
[352977045,1739471440714,-500.0,0.0001378,2]
[352977046,1739471440724,-500.0,0.0001378,2]
[352977047,1739471440733,-500.0,0.0001378,2]
[352977048,1739471440743,-500.0,0.0001378,2]
[352977049,1739471440752,-500.0,0.0001378,2]
[352977050,1739471440762,-503.2752994,0.0001378,2]
[352977051,1739471440771,-500.0,0.0001378,2]
[352977052,1739471440781,-500.0,0.0001378,2]
[352977053,1739471440790,-500.0,0.0001378,2]
[352977054,1739471440800,-506.86550136,0.0001378,2]
[352977055,1739471440809,-500.0,0.0001378,2]
[352977056,1739471440819,-813.77,0.0001378,2]
[352977057,1739471440829,-500.0,0.0001378,2]
[352977058,1739471440838,-711.27,0.0001378,2]
[352977059,1739471440847,-512.88548022,0.0001378,2]
[352977060,1739471440857,-500.0,0.0001378,2]
[352977061,1739471440867,-500.0,0.0001378,2]
[352977062,1739471440877,-500.0,0.0001378,2]
[352977063,1739471440887,-500.0,0.0001378,2]
[352977064,1739471440896,-500.0,0.0001378,2]
[352977065,1739471440906,-500.0,0.0001378,2]
[352977066,1739471440915,-500.0,0.0001378,2]
[352977067,1739471440925,-500.0,0.0001378,2]
[352977068,1739471440936,-500.0,0.0001378,2]
[352977069,1739471440945,-500.0,0.0001378,2]
[352977070,1739471440955,-500.0,0.0001378,2]
[352977071,1739471440964,-1178.49,0.0001378,2]
[352977072,1739471440974,-500.0,0.0001378,2]
[352977073,1739471440984,-760.76,0.0001378,2]
[352977074,1739471440994,-500.0,0.0001378,2]
[352977075,1739471441004,-500.0,0.0001378,2]
[352977076,1739471441014,-501.12756115,0.0001378,2]
[352977077,1739471441024,-500.0,0.0001378,2]
[352977078,1739471441033,-500.0,0.0001378,2]
[352977079,1739471441043,-151.0,0.0001378,2]
[352977080,1739471441053,-609.64906204,0.0001378,2]
[352977081,1739471441064,-500.0,0.0001378,2]
[352977082,1739471441073,-500.0,0.0001378,2]
[352977083,1739471441082,-500.0,0.0001378,2]
[352977084,1739471441092,-500.0,0.0001378,2]
[352977085,1739471441102,-500.0,0.0001378,2]
[352977086,1739471441112,-500.0,0.0001378,2]
[352977087,1739471441121,-1603.56,0.0001378,2]
[352977088,1739471441131,-151.0,0.0001378,2]
[352977089,1739471441141,-500.0,0.0001378,2]
[352977090,1739471441151,-151.0,0.0001378,2]
[352977091,1739471441160,-500.0,0.0001378,2]
[352977092,1739471441170,-778.89,0.0001378,2]
[352977093,1739471441179,-500.0,0.0001378,2]
[352977094,1739471441191,-500.0,0.0001378,2]
[352977095,1739471441201,-1660.91,0.0001378,2]
[352977096,1739471441211,-552.62237832,0.0001378,2]
[352977097,1739471441221,-500.0,0.0001378,2]
[352977098,1739471441232,-500.0,0.0001378,2]
[352977099,1739471441242,-1013.14,0.0001378,2]
[352977100,1739471441251,-500.0,0.0001378,2]
[352977101,1739471441262,-500.0,0.0001378,2]
[352977102,1739471441272,-151.0,0.0001378,2]
[352977103,1739471441281,-500.0,0.0001378,2]
[352977104,1739471441290,-500.0,0.0001378,2]
[352977105,1739471441301,-500.0,0.0001378,2]
[352977106,1739471441311,-500.0,0.0001378,2]
[352977107,1739471441321,-500.0,0.0001378,2]
[352977108,1739471441331,-500.0,0.0001378,2]
[352977109,1739471441340,-500.0,0.0001378,2]
[352977110,1739471441350,-500.0,0.0001378,2]
[352977111,1739471441360,-500.0,0.0001378,2]
[352977112,1739471441369,-500.0,0.0001378,2]
[352977113,1739471441379,-529.85592802,0.0001378,2]
[352977114,1739471441388,-500.0,0.0001378,2]
[352977115,1739471441398,-500.0,0.0001378,2]
[352977116,1739471441407,-500.0,0.0001378,2]
[352977117,1739471441416,-500.0,0.0001378,2]
[352977118,1739471441426,-500.0,0.0001378,2]
[352977119,1739471441436,-500.0,0.0001378,2]
[352977120,1739471441445,-1272.8,0.0001378,2]
[352977121,1739471441455,-500.0,0.0001378,2]
[352977122,1739471441464,-500.0,0.0001378,2]
[352977123,1739471441474,-500.0,0.0001378,2]
[352977124,1739471441483,-500.0,0.0001378,2]
[352977125,1739471441494,-500.0,0.0001378,2]
[352977126,1739471441503,-1856.14,0.0001378,2]
[352977127,1739471441513,-500.0,0.0001378,2]
[352977128,1739471441523,-500.0,0.0001378,2]
[352977129,1739471441533,-710.09,0.0001378,2]
[352977130,1739471441542,-506.11751133,0.0001378,2]
[352977131,1739471441552,-630.22,0.0001378,2]
[352977132,1739471441563,-1670.88,0.0001378,2]
[352977133,1739471441573,-3052.05,0.0001378,2]
[352977134,1739471441582,-500.0,0.0001378,2]
[352977135,1739471441695,-305.28697078,0.0001378,2]
[352977136,1739471441705,-2038.89,0.0001378,2]
[352977137,1739471441715,-500.0,0.0001378,2]
[352977138,1739471441725,-500.0,0.0001378,2]
[352977139,1739471441734,-4835.58,0.0001378,2]
[352977140,1739471441744,-259.650951,0.0001378,2]
[352977141,1739471441754,-500.0,0.0001378,2]
[352977142,1739471441764,-500.0,0.0001378,2]
[352977143,1739471441775,-172.401378,0.0001378,2]
[352977144,1739471441785,-2604.78,0.0001378,2]
[352977145,1739471441795,-172.401378,0.0001378,2]
[352977146,1739471441805,-151.0,0.0001378,2]
[352977147,1739471441815,-500.0,0.0001378,2]
[352977148,1739471441825,-500.0,0.0001378,2]
[352977149,1739471441835,-500.0,0.0001378,2]
[352977150,1739471441845,-500.0,0.0001378,2]
[352977151,1739471441855,-500.0,0.0001378,2]
[352977152,1739471441864,-894.6,0.0001378,2]
[352977153,1739471441874,-500.0,0.0001378,2]
[352977154,1739471441883,-1398.01,0.0001378,2]
[352977155,1739471441893,-11689.07,0.0001378,2]
[352977156,1739471441902,-500.0,0.0001378,2]
[352977157,1739471441912,-3307.32,0.0001378,2]
[352977158,1739471441921,-500.0,0.0001378,2]
[352977159,1739471441932,-500.0,0.0001378,2]
[352977160,1739471441942,-196.82095985,0.0001378,2]
[352977161,1739471441952,-500.0,0.0001378,2]
[352977162,1739471441961,-500.0,0.0001378,2]
[352977163,1739471441970,-507.09011089,0.0001378,2]
[352977164,1739471441981,-1008.28,0.0001378,2]
[352977165,1739471441991,-2039.12,0.0001378,2]
[352977166,1739471442001,-4691.41,0.0001378,2]
[352977167,1739471442015,-500.0,0.0001378,2]
[352977168,1739471442027,-500.0,0.0001378,2]
[352977169,1739471442039,-1392.44,0.0001378,2]
[352977170,1739471442048,-500.0,0.0001378,2]
[352977171,1739471442058,-463.7678388,0.0001378,2]
[352977172,1739471442067,-501.3,0.0001378,2]
[352977173,1739471442077,-151.0,0.0001378,2]
[352977174,1739471442087,-151.0,0.0001378,2]
[352977175,1739471442098,-500.0,0.0001378,2]
[352977176,1739471442107,-500.0,0.0001378,2]
[352977177,1739471442117,-794.63,0.0001378,2]
[352977178,1739471442127,-500.0,0.0001378,2]
[352977179,1739471442136,-500.0,0.0001378,2]
[352977180,1739471442147,-500.0,0.0001378,2]
[352977181,1739471442156,-934.66,0.0001378,2]
[352977182,1739471442166,-35038.18,0.0001378,2]
[352977183,1739471442176,-1191.05,0.0001378,2]
[352977184,1739471442187,-500.0,0.0001378,2]
[352977185,1739471442197,-500.0,0.0001378,2]
[352977186,1739471442207,-500.0,0.0001378,2]
[352977187,1739471442221,-500.0,0.0001378,2]
[352977188,1739471442231,-500.0,0.0001378,2]
[352977189,1739471442240,-1694.68,0.0001378,2]
[352977190,1739471442250,-1182.68,0.0001378,2]
[352977191,1739471442263,-500.0,0.0001378,2]
[352977192,1739471442273,-746.55,0.0001378,2]
[352977193,1739471442282,-675.84,0.0001378,2]
[352977194,1739471442292,-500.0,0.0001378,2]
[352977195,1739471442303,-500.0,0.0001378,2]
[352977196,1739471442313,-500.0,0.0001378,2]
[352977197,1739471442323,-500.0,0.0001378,2]
[352977198,1739471442333,-500.0,0.0001378,2]
[352977199,1739471442343,-1015.43,0.0001378,2]
[352977200,1739471442352,-1822.54,0.0001378,2]
[352977201,1739471442362,-437.311993,0.0001378,2]
[352977202,1739471442371,-437.311993,0.0001378,2]
[352977203,1739471442381,-500.0,0.0001378,2]
[352977204,1739471442390,-500.0,0.0001378,2]
[352977206,1739471442400,-437.311993,0.0001378,2]
[352977208,1739471442410,-437.311993,0.0001378,2]
[352977209,1739471442419,-14797.35,0.0001378,2]
[352977210,1739471442428,-500.0,0.0001378,2]
[352977211,1739471442440,-888.54,0.0001378,2]
[352977213,1739471442449,-500.0,0.0001378,2]
[352977215,1739471442459,-500.0,0.0001378,2]
[352977217,1739471442470,-552.86,0.0001378,2]
[352977218,1739471442480,-500.0,0.0001378,2]
[352977220,1739471442493,-861.53,0.0001378,2]
[352977222,1739471442504,-500.0,0.0001378,2]
[352977225,1739471442514,-500.0,0.0001378,2]
[352977228,1739471442524,-500.0,0.0001378,2]
[352977231,1739471442534,-500.0,0.0001378,2]
[352977235,1739471442543,-500.0,0.0001378,2]
[352977239,1739471442553,-151.0,0.0001378,2]
[352977242,1739471442562,-500.0,0.0001378,2]
[352977246,1739471442571,-151.0,0.0001378,2]
[352977250,1739471442580,-500.0,0.0001378,2]
[352977253,1739471442590,-1350.06,0.0001378,2]
[352977255,1739471442600,-500.0,0.0001378,2]
[352977258,1739471442609,-500.0,0.0001378,2]
[352977260,1739471442619,-649.7,0.0001378,2]
[352977262,1739471442628,-563.11,0.0001378,2]
[352977264,1739471442637,-500.0,0.0001378,2]
[352977265,1739471442646,-2380.41,0.0001378,2]
[352977266,1739471442655,-500.0,0.0001378,2]
[352977267,1739471442665,-3075.12,0.0001378,2]
[352977268,1739471442675,-336.015165,0.0001378,2]
[352977269,1739471442685,-336.015165,0.0001378,2]
[352977270,1739471442694,-557.79,0.0001378,2]
[352977271,1739471442704,-776.69,0.0001378,2]
[352977272,1739471442714,-336.015165,0.0001378,2]
[352977273,1739471442723,-336.015165,0.0001378,2]
[352977274,1739471442737,-500.0,0.0001378,2]
[352977275,1739471442753,-500.0,0.0001378,2]
[352977276,1739471442769,-500.0,0.0001378,2]
[352977277,1739471442780,-500.0,0.0001378,2]
[352977278,1739471442795,-205.421936,0.0001378,2]
[352977280,1739471442810,-500.0,0.0001378,2]
[352977281,1739471442825,-520.36,0.0001378,2]
[352977282,1739471442838,-553.24,0.0001378,2]
[352977283,1739471442854,-1408.59,0.0001378,2]
[352977284,1739471442870,-6346.38,0.0001378,2]
[352977285,1739471442883,-500.0,0.0001378,2]
[352977286,1739471442895,-500.0,0.0001378,2]
[352977287,1739471442908,-151.0,0.0001378,2]
[352977289,1739471442922,-151.0,0.0001378,2]
[352977290,1739471442936,-1121.12,0.0001378,2]
[352977291,1739471442947,-500.0,0.0001378,2]
[352977292,1739471442959,-500.0,0.0001378,2]
[352977293,1739471442973,-151.0,0.0001378,2]
[352977294,1739471442986,-151.0,0.0001378,2]
[352977295,1739471443000,-500.0,0.0001378,2]
[352977296,1739471443014,-502.15309799,0.0001378,2]
[352977297,1739471443029,-1152.75,0.0001378,2]
[352977298,1739471443045,-550.58,0.0001378,2]
[352977299,1739471443056,-500.0,0.0001378,2]
[352977300,1739471443067,-500.0,0.0001378,2]
[352977301,1739471443079,-232.75867246,0.0001378,2]
[352977302,1739471443094,-500.0,0.0001378,2]
[352977303,1739471443108,-151.0,0.0001378,2]
[352977304,1739471443119,-500.0,0.0001378,2]
[352977305,1739471443132,-217.01477322,0.0001378,2]
[352977306,1739471443145,-512.61,0.0001378,2]
[352977307,1739471443157,-179.511422,0.0001378,2]
[352977308,1739471443168,-3054.22,0.0001378,2]
[352977309,1739471443181,-500.0,0.0001378,2]
[352977310,1739471443193,-500.0,0.0001378,2]
[352977311,1739471443206,-568.48,0.0001378,2]
[352977312,1739471443220,-500.0,0.0001378,2]
[352977313,1739471443233,-831.59,0.0001378,2]
[352977314,1739471443246,-500.0,0.0001378,2]
[352977315,1739471443257,-500.0,0.0001378,2]
[352977316,1739471443271,-500.0,0.0001378,2]
[352977317,1739471443285,-500.0,0.0001378,2]
[352977318,1739471443298,-500.0,0.0001378,2]
[352977319,1739471443310,-500.0,0.0001378,2]
[352977320,1739471443324,-1185.47281429,0.00013792,2]
[352977321,1739471443335,-354.9488798,0.000138,2]
[352977322,1739471443347,-354.7304144,0.000138,2]
[352977323,1739471443360,-151.0,0.000138,2]
[352977324,1739471443372,-151.0,0.000138,2]
[352977325,1739471443384,-286.184393,0.000138,2]
[352977326,1739471443396,-286.184393,0.000138,2]
[352977327,1739471443408,-3139.84326307,0.00013845,2]
[352977328,1739471443420,-500.0,0.00013863,2]
[352977329,1739471443432,-500.0,0.00013863,2]
[352977330,1739471443445,-573.29222301,0.00013863,2]
[352977331,1739471443458,-500.0,0.00013863,2]
[352977332,1739471443470,-500.0,0.00013863,2]
[352977333,1739471443482,-500.0,0.00013863,2]
[352977334,1739471443495,-234.92165508,0.00013863,2]
[352977335,1739471443507,-500.0,0.00013863,2]
[352977336,1739471443519,-522.14452065,0.00013863,2]
[352977337,1739471443532,-500.0,0.00013863,2]
[352977338,1739471443544,-500.0,0.00013863,2]
[352977339,1739471443557,-500.0,0.00013863,2]
[352977340,1739471443569,-508.0938745,0.00013863,2]
[352977341,1739471443581,-500.0,0.00013863,2]
[352977342,1739471443593,-500.0,0.00013863,2]
[352977343,1739471443605,-500.0,0.00013863,2]
[352977344,1739471443617,-500.0,0.00013863,2]
[352977345,1739471443629,-500.0,0.00013863,2]